bitfinex/quotes_BTCUSD_20251110
["timestamp","ask_amount","ask_price","bid_price","bid_amount"]
[1762739370045,0.62460222,106020.0,106010.0,0.003]
[1762739370221,0.62577589,106020.0,106010.0,0.003]
[1762739370763,0.62577589,106020.0,106010.0,0.19166144]
[1762739370966,0.03750961,106020.0,106010.0,0.19166144]
[1762739371173,0.09604844,106020.0,106010.0,0.19166144]
[1762739371400,0.03703844,106020.0,106010.0,0.20741144]
[1762739371567,0.08007844,106020.0,106010.0,0.23017144]
[1762739371770,0.03703844,106020.0,106010.0,0.23017144]
[1762739371975,0.01970215,106020.0,106010.0,0.23017144]
[1762739372206,0.08010767,106020.0,106010.0,0.23017144]
[1762739372411,0.08010767,106020.0,106010.0,0.27205638]
[1762739372794,0.03706767,106020.0,106010.0,0.27205638]
[1762739373015,0.03706767,106020.0,106010.0,0.33326453]
[1762739374393,0.01970215,106020.0,106010.0,0.20741144]
[1762739374610,0.03708518,106020.0,106010.0,0.20741144]
[1762739374802,0.24169883,106020.0,106010.0,0.19166144]
[1762739374952,0.22269883,106020.0,106010.0,0.18866144]
[1762739375158,0.23269883,106020.0,106010.0,0.19066144]
[1762739375357,0.23269883,106020.0,106010.0,0.19166144]
[1762739375559,0.04405518,106020.0,106010.0,0.19166144]
[1762739375759,0.02808518,106020.0,106010.0,0.20741144]
[1762739376265,0.01808518,106020.0,106010.0,0.22817144]
[1762739376645,0.01908518,106020.0,106010.0,0.23017144]
[1762739377783,0.01908518,106020.0,106010.0,0.25860646]
[1762739377984,0.01908518,106020.0,106010.0,0.23017144]
[1762739378652,0.01908518,106020.0,106010.0,0.645707]
[1762739379011,0.01908518,106020.0,106010.0,0.23017144]
[1762739379223,0.01908518,106020.0,106010.0,0.29137959]
[1762739380014,0.01908518,106020.0,106010.0,0.26861959]
[1762739380751,0.01908518,106020.0,106010.0,0.29137959]
[1762739381641,0.01908518,106020.0,106010.0,0.34550258]
[1762739383572,0.01908518,106020.0,106010.0,0.29137959]
[1762739384729,0.01881357,106020.0,106010.0,0.29137959]
[1762739385875,0.01881357,106020.0,106010.0,0.70691515]
[1762739387631,0.01881357,106020.0,106010.0,1.02991515]
[1762739387838,0.01781357,106020.0,106010.0,1.02791515]
[1762739388161,0.01781357,106020.0,106010.0,1.12901688]
[1762739388162,0.01881357,106020.0,106010.0,1.12901688]
[1762739388368,0.01881357,106020.0,106010.0,1.13201688]
[1762739390046,0.0275548,106020.0,106010.0,1.13201688]
[1762739390252,0.0275548,106020.0,106010.0,0.71648132]
[1762739390488,0.01881357,106020.0,106010.0,1.13201688]
[1762739391028,0.02755663,106020.0,106010.0,1.16032534]
[1762739391859,0.01881357,106020.0,106010.0,1.16032534]
[1762739392997,0.01881357,106020.0,106010.0,1.0450346]
[1762739394768,0.01881357,106020.0,106010.0,1.01672614]
[1762739394978,0.00143054,106020.0,106010.0,1.01672614]
[1762739395457,0.00143054,106020.0,106010.0,1.08440605]
[1762739395843,0.00143054,106020.0,106010.0,1.1127131]
[1762739396040,0.00047147,106050.0,106010.0,1.1127131]
[1762739396041,0.19847663,106060.0,106050.0,0.18859028]
[1762739396259,0.01797472,106060.0,106050.0,0.23196931]
[1762739396620,0.20654722,106060.0,106050.0,0.23196931]
[1762739397147,0.20654722,106060.0,106050.0,0.21311028]
[1762739397285,0.01797472,106060.0,106050.0,0.23623028]
[1762739397488,0.03197472,106060.0,106050.0,0.23823028]
[1762739397690,0.03197472,106060.0,106050.0,0.3109386]
[1762739398258,0.02597472,106060.0,106050.0,0.3099386]
[1762739398600,0.20654722,106060.0,106050.0,0.3089386]
[1762739399221,0.20654722,106060.0,106050.0,0.23623028]
[1762739399752,0.20754722,106060.0,106050.0,0.04864]
[1762739399915,0.20754722,106060.0,106050.0,0.02552]
[1762739400304,0.20754722,106060.0,106050.0,0.23723028]
[1762739400903,0.20754722,106060.0,106050.0,0.04864]
[1762739401233,0.20754722,106060.0,106050.0,0.02552]
[1762739401438,0.24747722,106060.0,106050.0,0.01043]
[1762739401737,0.24888437,106060.0,106050.0,0.01043]
[1762739401903,0.22536437,106060.0,106050.0,0.19902028]
[1762739402111,0.20848294,106060.0,106050.0,0.21411028]
[1762739402791,0.20848294,106060.0,106050.0,0.02552]
[1762739402995,0.22489294,106060.0,106050.0,0.01043]
[1762739403468,0.28506665,106060.0,106050.0,0.001]
[1762739405070,0.60806665,106060.0,106050.0,0.001]
[1762739406983,0.65086665,106060.0,106050.0,0.001]
[1762739409050,0.34338187,106060.0,106050.0,0.21411028]
[1762739409228,0.38571044,106060.0,106050.0,0.23723028]
[1762739409410,0.01991044,106060.0,106050.0,0.23723028]
[1762739409884,0.01991044,106060.0,106050.0,0.59868325]
[1762739410294,0.00241804,106060.0,106050.0,0.59868325]
[1762739410498,0.05470804,106060.0,106050.0,0.001]
[1762739410796,0.92059312,106060.0,106050.0,0.001]
[1762739411163,0.6203483,106060.0,106050.0,0.001]
[1762739411514,0.92059312,106060.0,106050.0,0.003]
[1762739411725,0.6203483,106060.0,106050.0,0.003]
[1762739412058,0.18862586,106030.0,106020.0,0.2306256]
[1762739412268,0.18862586,106030.0,106020.0,0.03255]
[1762739412461,0.18862586,106030.0,106020.0,0.23628365]
[1762739412649,0.18909566,106040.0,106020.0,0.23628365]
[1762739412803,0.20651805,106040.0,106030.0,0.20371586]
[1762739413005,0.20604662,106040.0,106030.0,0.20371586]
[1762739413209,0.20604662,106040.0,106030.0,0.01509]
[1762739413409,0.20651805,106040.0,106030.0,0.01509]
[1762739413610,0.20651805,106040.0,106030.0,0.20371586]
[1762739413817,0.20604662,106040.0,106030.0,0.01509]
[1762739414048,0.20604662,106040.0,106030.0,0.20371586]
[1762739414229,0.20604662,106040.0,106030.0,0.03821]
[1762739414628,0.18862586,106030.0,106020.0,0.0944566]
[1762739414826,0.18862586,106030.0,106020.0,0.03255]
[1762739415070,0.20098586,106030.0,106020.0,0.02452]
[1762739415367,0.21841971,106030.0,106020.0,0.02452]
[1762739415512,0.21841971,106030.0,106020.0,0.00943]
[1762739415513,0.25882069,106030.0,106020.0,0.00943]
[1762739415708,0.25882069,106030.0,106020.0,0.23628365]
[1762739415709,0.01743385,106030.0,106020.0,0.23628365]
[1762739416109,0.01843385,106030.0,106020.0,0.23928365]
[1762739416555,0.01743385,106030.0,106020.0,0.23628365]
[1762739416773,0.20605971,106030.0,106020.0,0.23628365]
[1762739417011,0.01843385,106030.0,106020.0,0.23728365]
[1762739417566,0.20705971,106030.0,106020.0,0.23828365]
[1762739417778,0.01843385,106030.0,106020.0,0.23728365]
[1762739417988,0.20705971,106030.0,106020.0,0.23728365]
[1762739418196,0.01843385,106030.0,106020.0,0.23728365]
[1762739418803,0.01843385,106030.0,106020.0,0.28853654]
[1762739419007,0.01843385,106030.0,106020.0,0.23728365]
[1762739420238,0.01843385,106030.0,106020.0,0.26266284]
[1762739420718,0.01866785,106030.0,106020.0,0.26266284]
[1762739421559,0.01866785,106030.0,106020.0,0.56290766]
[1762739421780,0.01866785,106030.0,106020.0,0.62471782]
[1762739421986,0.01866785,106030.0,106020.0,0.69744036]
[1762739422431,0.01866785,106030.0,106020.0,0.74819874]
[1762739422684,0.01766785,106030.0,106020.0,0.74719874]
[1762739422924,0.01866785,106030.0,106020.0,0.75219874]
[1762739423379,0.01866785,106030.0,106020.0,0.7242275]
[1762739423600,0.01866785,106030.0,106020.0,0.71835982]
[1762739423847,0.01866785,106030.0,106020.0,0.72035982]
[1762739424362,0.01866785,106030.0,106020.0,0.32789058]
[1762739425092,0.01866785,106030.0,106020.0,0.6281354]
[1762739425540,0.01866785,106030.0,106020.0,0.59428685]
[1762739426040,0.01866785,106030.0,106020.0,0.32792639]
[1762739426257,0.20729371,106030.0,106020.0,0.32792639]
[1762739426514,0.20729371,106030.0,106020.0,0.25404801]
[1762739426753,0.20729371,106030.0,106020.0,0.27879801]
[1762739427014,0.01866785,106030.0,106020.0,0.32955639]
[1762739427510,0.04703785,106030.0,106020.0,0.11616274]
[1762739427760,0.03077785,106030.0,106020.0,0.11765274]
[1762739428004,0.21940371,106030.0,106020.0,0.09231098]
[1762739428259,0.01866785,106030.0,106020.0,0.25553801]
[1762739428494,0.20729371,106030.0,106020.0,0.06689436]
[1762739428701,0.24732371,106030.0,106020.0,0.07573211]
[1762739429154,0.22355371,106030.0,106020.0,0.07573211]
[1762739429773,0.22355371,106030.0,106020.0,0.26437576]
[1762739430009,0.03492785,106030.0,106020.0,0.28095576]
[1762739430218,0.20729371,106030.0,106020.0,0.28095576]
[1762739430868,0.20729371,106030.0,106020.0,0.09231211]
[1762739431088,0.20729371,106030.0,106020.0,0.28095576]
[1762739433515,0.20729371,106030.0,106020.0,0.28096265]
[1762739433936,0.01866785,106030.0,106020.0,0.66659118]
[1762739434147,0.01866785,106030.0,106020.0,0.11765274]
[1762739434359,0.01866785,106030.0,106020.0,0.33104639]
[1762739434566,0.20729371,106030.0,106020.0,0.28028801]
[1762739434774,0.01866785,106030.0,106020.0,0.28028801]
[1762739434983,0.01866785,106030.0,106020.0,0.33104639]
[1762739435195,0.20729371,106030.0,106020.0,0.33104639]
[1762739435434,0.01866785,106030.0,106020.0,0.33104639]
[1762739436066,0.01866785,106030.0,106020.0,0.28028801]
[1762739437283,0.01866785,106030.0,106020.0,0.33104639]
[1762739437489,0.01866785,106030.0,106020.0,0.28028801]
[1762739437704,0.20729371,106030.0,106020.0,0.28028801]
[1762739438126,0.01866785,106030.0,106020.0,0.33104639]
[1762739439441,0.20729371,106030.0,106020.0,0.33104639]
[1762739439883,0.01866785,106030.0,106020.0,0.33104639]
[1762739440208,0.20729371,106030.0,106020.0,0.33104639]
[1762739440651,0.20729371,106030.0,106020.0,0.25553801]
[1762739441046,0.22348171,106030.0,106020.0,0.23895801]
[1762739441242,0.22348171,106030.0,106020.0,0.05031436]
[1762739441443,0.20722171,106030.0,106020.0,0.25553801]
[1762739441882,0.20722171,106030.0,106020.0,0.06689436]
[1762739442058,0.22348171,106030.0,106020.0,0.05031436]
[1762739442681,0.23493171,106030.0,106020.0,0.05031436]
[1762739442986,0.23493171,106030.0,106020.0,0.23895801]
[1762739443769,0.23493171,106030.0,106020.0,0.05031436]
[1762739443990,0.23493171,106030.0,106020.0,0.23895801]
[1762739444752,0.23493171,106030.0,106020.0,0.05031436]
[1762739445095,0.23493171,106030.0,106020.0,0.23895801]
[1762739445595,0.04630585,106030.0,106020.0,0.23895801]
[1762739445797,0.03004585,106030.0,106020.0,0.25553801]
[1762739446011,0.01859585,106030.0,106020.0,0.28028801]
[1762739446196,0.01859585,106030.0,106020.0,0.25553801]
[1762739446407,0.20722171,106030.0,106020.0,0.28098819]
[1762739447046,0.01859585,106030.0,106020.0,0.28098819]
[1762739447226,0.20196986,106030.0,106020.0,0.28098819]
[1762739447431,0.013344,106030.0,106020.0,0.28098819]
[1762739447912,0.21790986,106030.0,106020.0,0.26440819]
[1762739448360,0.029284,106030.0,106020.0,0.26440819]
[1762739448568,0.001234,106030.0,106020.0,0.30353819]
[1762739449187,0.001234,106030.0,106020.0,0.32884639]
[1762739449390,0.001234,106030.0,106020.0,0.41768512]
[1762739449601,0.001234,106030.0,106020.0,0.36692674]
[1762739449841,0.001234,106030.0,106020.0,0.27808801]
[1762739450869,0.052174,106030.0,106020.0,0.23895801]
[1762739451349,0.001234,106030.0,106020.0,0.61304951]
[1762739451527,0.00048232,106060.0,106050.0,0.18859028]
[1762739451671,0.00048232,106060.0,106050.0,0.66231722]
[1762739451875,0.00048232,106060.0,106050.0,0.6707986]
[1762739452080,0.00048232,106060.0,106050.0,0.69623986]
[1762739452906,0.00048232,106060.0,106050.0,0.69723986]
[1762739453236,0.00048232,106060.0,106050.0,0.66331435]
[1762739453620,0.00148232,106060.0,106050.0,0.66631435]
[1762739454418,0.00148232,106060.0,106050.0,0.36606953]
[1762739454631,0.00148232,106060.0,106050.0,0.66631435]
[1762739455014,0.00148232,106060.0,106050.0,0.36606953]
[1762739455859,0.00148232,106060.0,106050.0,0.78106551]
[1762739456069,0.00148232,106060.0,106050.0,0.36606953]
[1762739456280,0.00148232,106060.0,106050.0,0.78106551]
[1762739456495,0.00148232,106060.0,106050.0,0.80651252]
[1762739457146,0.00218406,106060.0,106050.0,0.82330416]
[1762739457372,0.00218406,106060.0,106050.0,1.07862425]
[1762739457585,0.03737,106100.0,106090.0,0.18851918]
[1762739457815,0.03007175,106100.0,106090.0,0.23565479]
[1762739458028,0.01766175,106100.0,106090.0,0.25133479]
[1762739458270,0.00014472,106100.0,106090.0,0.33644294]
[1762739458722,0.00014472,106100.0,106090.0,0.34293084]
[1762739458898,0.00214472,106100.0,106090.0,0.34293084]
[1762739459097,0.00214472,106100.0,106090.0,0.36683084]
[1762739459553,0.00014472,106100.0,106090.0,0.36683084]
[1762739459727,0.00014472,106100.0,106090.0,0.34293084]
[1762739460011,0.00014472,106100.0,106090.0,0.75892682]
[1762739460205,0.00014472,106100.0,106090.0,0.39256548]
[1762739460384,0.00014472,106100.0,106090.0,0.36783084]
[1762739460602,0.00014472,106100.0,106090.0,0.78282682]
[1762739460845,0.00014472,106100.0,106090.0,0.79233612]
[1762739461055,0.00014472,106100.0,106090.0,0.81013565]
[1762739461275,0.00014472,106100.0,106090.0,0.83770362]
[1762739461891,0.00014472,106100.0,106090.0,1.16070362]
[1762739462399,0.00014472,106100.0,106090.0,1.40688588]
[1762739462620,0.00014472,106100.0,106090.0,1.40588588]
[1762739462972,0.00014472,106100.0,106090.0,1.40988588]
[1762739463170,0.00107991,106100.0,106090.0,1.40988588]
[1762739463639,0.00107991,106100.0,106090.0,1.55678588]
[1762739463929,0.0002,106140.0,106130.0,0.18844812]
[1762739464169,0.00034458,106140.0,106130.0,0.72755207]
[1762739464406,0.00034458,106140.0,106130.0,0.78183997]
[1762739464638,0.01780398,106140.0,106130.0,0.75145207]
[1762739465129,0.03380398,106140.0,106130.0,0.75345207]
[1762739465357,0.22223435,106140.0,106130.0,0.56500395]
[1762739465598,0.01780398,106140.0,106130.0,0.75145207]
[1762739465826,0.20623435,106140.0,106130.0,0.06289982]
[1762739466031,0.20723435,106140.0,106130.0,0.12410797]
[1762739466231,0.20723435,106140.0,106130.0,0.14800797]
[1762739467065,0.18846588,106120.0,106110.0,0.25955711]
[1762739467266,0.0174594,106120.0,106110.0,0.83913551]
[1762739467401,0.0174594,106120.0,106110.0,0.85481551]
[1762739467602,0.0174594,106120.0,106110.0,0.95291724]
[1762739467812,0.0174594,106120.0,106110.0,0.97681724]
[1762739468338,0.0174594,106120.0,106110.0,0.98181724]
[1762739469812,0.0174594,106120.0,106110.0,0.96379828]
[1762739470131,0.01792682,106120.0,106110.0,1.28679828]
[1762739470633,0.01792682,106120.0,106110.0,1.29679826]
[1762739471043,0.00034458,106140.0,106130.0,0.18844812]
[1762739471254,0.00034458,106140.0,106130.0,0.71802205]
[1762739471463,0.00034458,106140.0,106130.0,0.74192205]
[1762739471880,0.00034458,106140.0,106130.0,0.32692607]
[1762739472304,0.00134458,106140.0,106130.0,0.32692607]
[1762739473514,0.00234458,106140.0,106130.0,0.32692607]
[1762739474846,0.00234458,106140.0,106130.0,0.74192205]
[1762739475684,0.00234458,106140.0,106130.0,0.32692607]
[1762739476060,0.00134458,106140.0,106130.0,0.32692607]
[1762739476433,0.00034458,106140.0,106130.0,0.32692607]
[1762739476641,0.00081187,106140.0,106130.0,0.32692607]
[1762739477253,0.00952449,106140.0,106130.0,0.32692607]
[1762739477453,0.19795486,106140.0,106120.0,0.35924987]
[1762739477672,0.18844812,106130.0,106120.0,0.33536588]
[1762739477834,0.23012602,106140.0,106120.0,0.35926588]
[1762739478043,0.18844812,106130.0,106120.0,0.42768538]
[1762739478266,0.19716858,106130.0,106120.0,0.28078538]
[1762739478605,0.00872046,106130.0,106120.0,0.29646538]
[1762739479239,0.19716858,106130.0,106120.0,0.22804588]
[1762739479440,0.02065046,106130.0,106120.0,0.20514588]
[1762739479599,0.02065046,106130.0,106120.0,0.20414588]
[1762739479814,0.20909858,106130.0,106120.0,0.20714588]
[1762739480013,0.21009858,106130.0,106120.0,0.20714588]
[1762739480220,0.02165046,106130.0,106120.0,0.20414588]
[1762739480781,0.02265046,106130.0,106120.0,0.20414588]
[1762739481135,0.21109858,106130.0,106120.0,0.20414588]
[1762739481337,0.02265046,106130.0,106120.0,0.20414588]
[1762739481540,0.01072046,106130.0,106120.0,0.20414588]
[1762739482280,0.01072046,106130.0,106120.0,0.22816588]
[1762739482482,0.01072046,106130.0,106120.0,0.28765712]
[1762739482824,0.01095412,106130.0,106120.0,0.28765712]
[1762739483117,0.0284596,106130.0,106120.0,0.28765712]
[1762739484195,0.0284596,106130.0,106120.0,0.22816588]
[1762739485444,0.21690772,106130.0,106120.0,0.22816588]
[1762739485648,0.0284596,106130.0,106120.0,0.22816588]
[1762739485850,0.0284596,106130.0,106120.0,0.01568]
[1762739486093,0.25675772,106130.0,106110.0,0.39076648]
[1762739486337,0.23288884,106130.0,106120.0,0.18846588]
[1762739486546,0.23241772,106130.0,106110.0,0.28323654]
[1762739486759,0.24171884,106130.0,106120.0,0.18846588]
[1762739486961,0.18846588,106120.0,106110.0,0.19801364]
[1762739487187,0.21469182,106120.0,106110.0,0.00953]
[1762739487365,0.21516298,106120.0,106110.0,0.21523364]
[1762739487518,0.21469182,106120.0,106110.0,0.21523364]
[1762739487716,0.02622594,106120.0,106110.0,0.23925364]
[1762739488843,0.02622594,106120.0,106110.0,0.23825364]
[1762739489038,0.02622594,106120.0,106110.0,0.23925364]
[1762739489246,0.02622594,106120.0,106110.0,0.24025364]
[1762739489446,0.21469182,106120.0,106110.0,0.21523364]
[1762739489647,0.21469182,106120.0,106110.0,0.21423364]
[1762739489852,0.19455141,106100.0,106090.0,0.0005752]
[1762739490060,0.323,106080.0,106050.0,0.00203303]
[1762739490264,0.5115725,106060.0,106050.0,0.00203303]
[1762739490516,0.52907798,106060.0,106050.0,0.00203303]
[1762739491202,0.52907798,106060.0,106050.0,0.00217775]
[1762739491541,0.52954887,106060.0,106050.0,0.00217775]
[1762739492303,0.53154905,106060.0,106050.0,0.00217775]
[1762739492461,0.94907396,106060.0,106050.0,0.00217775]
[1762739492670,0.9857272,106060.0,106050.0,0.00217775]
[1762739494227,1.0286472,106060.0,106050.0,0.00217775]
[1762739494423,1.02817624,106060.0,106050.0,0.00217775]
[1762739494630,1.02864729,106060.0,106050.0,0.00217775]
[1762739496144,1.01114181,106060.0,106050.0,0.00217775]
[1762739497594,1.02859999,106060.0,106050.0,0.00217775]
[1762739499992,0.57695068,106060.0,106050.0,0.05461775]
[1762739500167,0.53450209,106060.0,106050.0,0.01437775]
[1762739501543,0.53450209,106060.0,106050.0,0.00217775]
[1762739502663,0.53450209,106060.0,106050.0,0.01839775]
[1762739502925,0.51704391,106060.0,106050.0,0.01839775]
[1762739503361,0.51704391,106060.0,106050.0,0.00217775]
[1762739504455,0.53447543,106060.0,106050.0,0.00217775]
[1762739509226,0.949,106060.0,106050.0,0.00217775]
[1762739509426,0.98565371,106060.0,106050.0,0.00217775]
[1762739510669,0.98566902,106060.0,106050.0,0.00217775]
[1762739510873,0.98066902,106060.0,106050.0,0.00217775]
[1762739511313,1.00666902,106060.0,106050.0,0.00517775]
[1762739513229,1.00666896,106060.0,106050.0,0.00517775]
[1762739516638,1.00672397,106060.0,106050.0,0.00517775]
[1762739517148,0.89208678,106060.0,106050.0,0.00517775]
[1762739517308,0.89161541,106060.0,106050.0,0.00517775]
[1762739517677,0.89208678,106060.0,106050.0,0.00517775]
[1762739518228,0.90085256,106060.0,106050.0,0.00517775]
[1762739521773,0.64313377,106060.0,106050.0,0.00517775]
[1762739521978,0.37526762,106060.0,106050.0,0.0830059]
[1762739522152,0.36650184,106060.0,106050.0,0.0830059]
[1762739522352,0.36650184,106060.0,106050.0,0.59656497]
[1762739522353,0.04350184,106060.0,106050.0,0.59656497]
[1762739522613,0.01850184,106060.0,106050.0,0.68508207]
[1762739522827,0.01850184,106060.0,106050.0,0.67508207]
[1762739523053,0.01850184,106060.0,106050.0,0.37472328]
[1762739523250,0.01850184,106060.0,106050.0,0.40860523]
[1762739523432,0.01850184,106060.0,106050.0,0.40660523]
[1762739523702,0.19796444,106080.0,106060.0,0.18855641]
[1762739523934,0.21553337,106080.0,106060.0,0.27352553]
[1762739524151,0.18855472,106070.0,106060.0,0.1885725]
[1762739524326,0.20612365,106070.0,106060.0,0.1885725]
[1762739524530,0.20612365,106070.0,106060.0,0.01662]
[1762739524747,0.1885725,106060.0,106050.0,0.19076803]
[1762739524946,0.01756893,106060.0,106050.0,0.19076803]
[1762739525169,0.01756893,106060.0,106050.0,0.20738803]
[1762739525298,0.20614143,106060.0,106050.0,0.20738803]
[1762739525903,0.20614143,106060.0,106050.0,0.00217775]
[1762739526323,0.20614143,106060.0,106050.0,0.19076803]
[1762739526493,0.01756893,106060.0,106050.0,0.19076803]
[1762739526706,0.20614143,106060.0,106050.0,0.19076803]
[1762739526906,0.01756893,106060.0,106050.0,0.20738803]
[1762739527133,0.01756893,106060.0,106050.0,0.20838803]
[1762739527415,0.01756893,106060.0,106050.0,0.23299803]
[1762739528248,0.01756893,106060.0,106050.0,0.25780969]
[1762739528451,0.323,106070.0,106060.0,0.1885725]
[1762739528656,0.323,106070.0,106060.0,0.2051925]
[1762739528657,0.52911259,106070.0,106060.0,0.2051925]
[1762739528987,0.1885725,106060.0,106050.0,0.19176803]
[1762739529122,0.20613037,106060.0,106050.0,0.19176803]
[1762739529326,0.20613037,106060.0,106050.0,0.20738803]
[1762739529532,0.20613037,106060.0,106050.0,0.23199803]
[1762739529533,0.01755787,106060.0,106050.0,0.23199803]
[1762739529740,0.51755472,106070.0,106060.0,0.1885725]
[1762739529941,0.53511052,106070.0,106060.0,0.1885725]
[1762739530164,0.3455558,106070.0,106060.0,0.2051925]
[1762739530363,0.52911052,106070.0,106060.0,0.2051925]
[1762739530583,0.3405558,106070.0,106060.0,0.2051925]
[1762739531530,0.54011052,106070.0,106060.0,0.2051925]
[1762739531739,0.3515558,106070.0,106060.0,0.2051925]
[1762739532364,0.1885725,106060.0,106050.0,0.19076803]
[1762739532571,0.1885725,106060.0,106050.0,0.20738803]
[1762739532572,0.0175558,106060.0,106050.0,0.20738803]
[1762739532781,0.0175558,106060.0,106050.0,0.23199803]
[1762739532987,0.5230261,106070.0,106060.0,0.1885725]
[1762739533161,0.1885725,106060.0,106050.0,0.04340775]
[1762739533301,0.9317955,106060.0,106050.0,0.00217775]
[1762739533503,0.90822394,106060.0,106050.0,0.00417775]
[1762739533746,0.90822394,106060.0,106050.0,0.00317775]
[1762739534121,0.90822394,106060.0,106050.0,0.00217775]
[1762739534560,0.92069479,106060.0,106050.0,0.00317775]
[1762739534713,0.92569528,106060.0,106050.0,0.00317775]
[1762739534914,0.58277645,106060.0,106050.0,0.00317775]
[1762739535117,0.22312287,106060.0,106050.0,0.23299803]
[1762739535324,0.22312287,106060.0,106050.0,0.08656776]
[1762739535571,0.22312287,106060.0,106050.0,0.01979775]
[1762739535768,0.22312287,106060.0,106050.0,0.00317775]
[1762739535977,0.54612287,106060.0,106050.0,0.00317775]
[1762739536176,0.54612287,106060.0,106050.0,0.19176803]
[1762739536426,0.54612287,106060.0,106050.0,0.20838803]
[1762739536638,0.35755037,106060.0,106050.0,0.20838803]
[1762739536842,0.54612287,106060.0,106050.0,0.23299803]
[1762739537047,0.5285725,106060.0,106050.0,0.23299803]
[1762739537252,0.34,106060.0,106050.0,0.23299803]
[1762739537870,0.017,106060.0,106050.0,0.23299803]
[1762739538052,0.86511357,106060.0,106050.0,0.00317775]
[1762739538298,0.5827728,106060.0,106050.0,0.00317775]
[1762739538497,0.58277276,106060.0,106050.0,0.00317775]
[1762739538698,0.56522612,106060.0,106050.0,0.00317775]
[1762739538866,0.58277495,106060.0,106050.0,0.00317775]
[1762739539088,0.57777495,106060.0,106050.0,0.00317775]
[1762739539289,0.56022612,106060.0,106050.0,0.00317775]
[1762739539490,0.56322612,106060.0,106050.0,0.00317775]
[1762739539687,0.56022612,106060.0,106050.0,0.00317775]
[1762739540115,0.56422612,106060.0,106050.0,0.00317775]
[1762739540334,0.55222612,106060.0,106050.0,0.00217775]
[1762739540535,0.59478612,106060.0,106050.0,0.00217775]
[1762739540775,0.5661325,106060.0,106050.0,0.20838803]
[1762739540984,0.5661325,106060.0,106050.0,0.00317775]
[1762739541121,0.5235725,106060.0,106050.0,0.00317775]
[1762739541887,0.5155725,106060.0,106050.0,0.00217775]
[1762739543660,0.54312108,106060.0,106050.0,0.00317775]
[1762739544121,0.87966215,106060.0,106050.0,0.00317775]
[1762739544906,1.60376514,106060.0,106050.0,0.00317775]
[1762739545115,1.38997115,106060.0,106050.0,0.00317775]
[1762739545320,1.39044258,106060.0,106050.0,0.00317775]
[1762739545527,1.43640091,106060.0,106050.0,1e-08]
[1762739545874,1.48221528,106060.0,106050.0,1e-08]
[1762739546076,1.75275969,106060.0,106050.0,1e-08]
[1762739546214,1.54051003,106060.0,106050.0,1e-08]
[1762739546554,1.07268324,106060.0,106050.0,1e-08]
[1762739546961,1.09668324,106060.0,106050.0,1e-08]
[1762739547194,1.09621229,106060.0,106050.0,1e-08]
[1762739547342,1.09668324,106060.0,106050.0,1e-08]
[1762739547543,1.12195418,106060.0,106050.0,1e-08]
[1762739547958,1.14059689,106060.0,106050.0,1e-08]
[1762739548131,0.18867924,106000.0,105990.0,0.04527195]
[1762739548330,0.25474414,106000.0,105990.0,0.01187232]
[1762739548567,0.23115924,106000.0,105990.0,0.01187232]
[1762739548785,0.23115924,106000.0,105990.0,0.01327675]
[1762739549216,0.23115924,106000.0,105990.0,0.0471587]
[1762739549425,0.23115924,106000.0,105990.0,0.01327675]
[1762739550116,0.23315924,106000.0,105990.0,0.02727675]
[1762739550349,0.23315924,106000.0,105990.0,0.21597379]
[1762739550569,0.23315924,106000.0,105990.0,0.21842379]
[1762739550570,0.23115924,106000.0,105990.0,0.21842379]
[1762739550788,0.23115924,106000.0,105990.0,0.02972675]
[1762739551007,0.23315924,106000.0,105990.0,0.01427675]
[1762739551220,0.23315924,106000.0,105990.0,0.21942379]
[1762739551431,0.23315924,106000.0,105990.0,0.03072675]
[1762739551855,0.23315924,106000.0,105990.0,0.21942379]
[1762739552073,0.23315924,106000.0,105990.0,0.00328675]
[1762739552296,0.89270031,106000.0,105990.0,0.00328675]
[1762739553007,0.89317133,106000.0,105990.0,0.00328675]
[1762739553479,0.59234152,106000.0,105990.0,0.24390379]
[1762739554673,0.36748,106000.0,105990.0,0.24390379]
[1762739554888,0.002,106000.0,105990.0,0.24390379]
[1762739555110,0.002,106000.0,105990.0,0.33899389]
[1762739555999,0.5577296,106020.0,106010.0,0.18866144]
[1762739556190,0.5572587,106020.0,106010.0,0.21758144]
[1762739556406,0.5572587,106020.0,106010.0,0.24058144]
[1762739556845,0.52107642,106020.0,106010.0,0.05192]
[1762739557293,0.54607642,106020.0,106010.0,0.03192]
[1762739557975,0.22486152,106000.0,105990.0,0.00088232]
[1762739558224,1.0529803,106000.0,105990.0,0.00088232]
[1762739558678,1.04298031,106000.0,105990.0,0.00088232]
[1762739558926,1.35333909,106000.0,105990.0,1e-08]
[1762739559134,1.0559803,106000.0,105990.0,0.00700001]
[1762739559331,1.0609803,106000.0,105990.0,1e-08]
[1762739559584,1.36133909,106000.0,105990.0,1e-08]
[1762739559774,1.3483391,106000.0,105990.0,1e-08]
[1762739559977,1.37080998,106000.0,105990.0,0.00100001]
[1762739560180,1.36080999,106000.0,105990.0,0.00100001]
[1762739560352,1.0699803,106000.0,105990.0,1e-08]
[1762739560935,1.37033909,106000.0,105990.0,1e-08]
[1762739561138,1.38783345,106000.0,105990.0,1e-08]
[1762739561340,1.47042885,106000.0,105990.0,1e-08]
[1762739561736,1.46995791,106000.0,105990.0,0.00140444]
[1762739561990,1.4704288,106000.0,105990.0,1e-08]
[1762739562216,1.4534288,106000.0,105990.0,1e-08]
[1762739562413,1.4594288,106000.0,105990.0,1e-08]
[1762739562568,1.4744288,106000.0,105990.0,1e-08]
[1762739562773,1.17407001,106000.0,105990.0,1e-08]
[1762739563172,1.16407002,106000.0,105990.0,1e-08]
[1762739563372,1.17407001,106000.0,105990.0,1e-08]
[1762739563580,1.0121101,106000.0,105990.0,1e-08]
[1762739563981,1.01211024,106000.0,105990.0,1e-08]
[1762739564258,0.71175145,106000.0,105990.0,1e-08]
[1762739564699,1.01211024,106000.0,105990.0,1e-08]
[1762739564919,0.96931024,106000.0,105990.0,1e-08]
[1762739565135,1.01207024,106000.0,105990.0,1e-08]
[1762739565342,1.08915824,106000.0,105990.0,1e-08]
[1762739565545,1.01159912,106000.0,105990.0,1e-08]
[1762739565765,1.01207024,106000.0,105990.0,1e-08]
[1762739566008,0.9693101,106000.0,105990.0,1e-08]
[1762739566224,0.99457574,106000.0,105990.0,1e-08]
[1762739566434,1.01203075,106000.0,105990.0,1e-08]
[1762739566650,1.14742775,106000.0,105990.0,1e-08]
[1762739567758,1.147429,106000.0,105990.0,1e-08]
[1762739568095,1.13742901,106000.0,105990.0,1e-08]
[1762739568300,1.147429,106000.0,105990.0,1e-08]
[1762739568519,1.138926,106000.0,105990.0,1e-08]
[1762739568699,1.012032,106000.0,105990.0,1e-08]
[1762739569338,1.115372,106000.0,105990.0,1e-08]
[1762739569519,1.012032,106000.0,105990.0,1e-08]
[1762739570829,0.5928555,106000.0,105990.0,1e-08]
[1762739571126,1.44716728,106000.0,105990.0,1e-08]
[1762739571265,0.93986754,106000.0,105990.0,1e-08]